[Event "ONJK-C 2019"]
[Site "Borne"]
[Date "2019.08.09"]
[Round "7.2"]
[White "Klugstedt, Vincent"]
[Black "Kumar, Prajit Sai"]
[Result "1/2-1/2"]
[ECO "E32"]
[WhiteElo "1834"]
[BlackElo "1574"]
[Annotator "NA RC"]
[PlyCount "163"]
[EventDate "2019.08.05"]
[EventType "swiss"]
[EventCountry "NED"]
[SourceTitle "playchess.com"]
[Source "ChessBase"]
[SourceQuality "1"]
[TimeControl "5400+30"]

1. d4 {[%emt 0:00:00]} Nf6 {[%emt 0:00:00]} 2. c4 {[%emt 0:00:00]} e6 {[%emt 0:00:00]} 3. Nc3 {[%emt 0:00:00]} Bb4 {[%emt 0:00:00]} 4. Qc2 {[%emt 0:00:00]} d5 {[%emt 0:00:22]} 5. Nf3 {[%emt 0:01:23]} O-O {[%emt 0:00:57]} 6. Bg5 {[%emt 0:01:06]} Nbd7 {[%emt 0:01:38]} 7. a3 {[%emt 0:01:34]} Bxc3+ {[%emt 0:00:54]} 8. Qxc3 {[%emt 0:01:09]} c6 {[%emt 0:03:45]} 9. e3 {[%emt 0:03:06]} Ne4 {[%emt 0:04:17]} 10. Bxd8 {[%emt 0:00:42]} Nxc3 {[%emt 0:00:07]} 11. bxc3 {[%emt 0:01:50]} (11. Bc7 $5 {[%cal Rb2c3]} Ne4 12. Rc1 $16) 11... Rxd8 {[%emt 0:00:22]} 12. cxd5 {[%emt 0:00:14]} exd5 {[%emt 0:01:15]} 13. Bd3 {[%emt 0:00:52]} Nf6 {[%emt 0:02:41]} 14. O-O {[%emt 0:01:46]} Be6 $11 {[%emt 0:02:14]} 15. Rfc1 {[%emt 0:06:14]} Rac8 {[%emt 0:02:51]} 16. Rab1 {[%emt 0:01:21]} b5 {[%emt 0:01:49]} 17. Rb2 {[%emt 0:02:33]} a6 {[%emt 0:03:51]} 18. Rcb1 {[%emt 0:01:05]} Re8 {[%emt 0:04:42]} 19. h3 {[%emt 0:04:00]} h6 {[%emt 0:00:31]} 20. Ra1 {[%emt 0:01:16]} Ra8 {[%emt 0:13:51]} 21. Ne5 {[%emt 0:00:44]} Nd7 {[%emt 0:00:24]} 22. Nf3 {[%emt 0:04:52]} Nb6 {[%emt 0:02:50]} 23. Kf1 {[%emt 0:01:39]} Na4 {[%emt 0:01:30]} 24. Rc2 {[%emt 0:00:19]} f6 {[%emt 0:01:04]} 25. Ke2 {[%emt 0:00:23]} Kf7 {[%emt 0:01:02]} 26. Nh4 {[%emt 0:01:38]} Ke7 {[%emt 0:01:23]} 27. Ng6+ {[%emt 0:00:43]} Kd6 {[%emt 0:01:25]} 28. Nf4 {[%emt 0:00:35]} Bf7 {[%emt 0:01:42]} 29. Kd2 {[%emt 0:00:48]} Re7 {[%emt 0:02:49]} 30. Rca2 {[%emt 0:02:16]} Rea7 {[%emt 0:02:59]} 31. Bc2 {[%emt 0:01:08]} Nb6 {[%emt 0:00:11]} 32. Nd3 {[%emt 0:01:32]} Bg6 {[%emt 0:03:04]} 33. Nc5 {[%emt 0:02:26]} Bxc2 {[%emt 0:00:46]} 34. Kxc2 {[%emt 0:00:10]} Nd7 {[%emt 0:00:36]} 35. Nd3 {[%emt 0:01:05]} Nb6 {[%emt 0:01:40]} 36. Nb2 {[%emt 0:00:16]} Kc7 {[%emt 0:02:48]} 37. Kd3 {[%emt 0:01:35]} Nc4 {[%emt 0:00:49]} 38. f3 {[%emt 0:03:10]} Nxb2+ {[%emt 0:02:58]} 39. Rxb2 {[%emt 0:00:00]} f5 {[%emt 0:01:03]} 40. Re2 {[%emt 0:00:36]} Re8 {[%emt 0:01:00]} 41. Rf1 {[%emt 0:00:47]} Kd6 {[%emt 0:00:29]} 42. e4 {[%emt 0:01:12]} dxe4+ {[%emt 0:00:50]} 43. fxe4 {[%emt 0:00:12]} fxe4+ {[%emt 0:00:08]} 44. Rxe4 {[%emt 0:00:04]} Rxe4 {[%emt 0:01:36]} 45. Kxe4 {[%emt 0:00:08]} Re7+ {[%emt 0:00:04]} 46. Kd3 {[%emt 0:00:10]} a5 {[%emt 0:01:43]} 47. Rf2 {[%emt 0:05:43]} Ke6 {[%emt 0:01:18]} 48. a4 {[%emt 0:01:11]} bxa4 {[%emt 0:01:50]} 49. Ra2 {[%emt 0:00:45]} Rf7 {[%emt 0:01:00]} 50. Ke3 {[%emt 0:00:38]} c5 {[%emt 0:02:26]} 51. Rxa4 {[%emt 0:01:29]} cxd4+ {[%emt 0:00:20]} 52. cxd4 {[%emt 0:01:44]} Ra7 {[%emt 0:00:54]} 53. Ke4 {[%emt 0:00:12]} Ra6 {[%emt 0:00:47]} 54. h4 {[%emt 0:02:45]} g6 {[%emt 0:00:37]} 55. g4 {[%emt 0:00:50]} h5 {[%emt 0:01:27]} 56. gxh5 {[%emt 0:03:37]} gxh5 {[%emt 0:00:15]} 57. Kf4 {[%emt 0:00:35]} Rd6 {[%emt 0:02:40]} 58. Rxa5 {[%emt 0:00:33]} Rxd4+ {[%emt 0:00:18]} 59. Kg5 {[%emt 0:00:31]} Kf7 {[%emt 0:00:54]} 60. Kxh5 {[%emt 0:00:24]} Rd8 {[%emt 0:00:52]} 61. Rf5+ {[%emt 0:03:32]} Kg7 {[%emt 0:00:26]} 62. Kg5 {[%emt 0:00:34]} Rf8 {[%emt 0:00:43]} 63. Rb5 {[%emt 0:00:26]} Rf7 {[%emt 0:00:22]} 64. h5 {[%emt 0:00:18]} Rf1 {[%emt 0:00:12]} 65. Rb7+ {[%emt 0:02:00]} Kg8 {[%emt 0:00:13]} 66. Kg6 {[%emt 0:01:02]} Rg1+ {[%emt 0:00:18]} 67. Kh6 {[%emt 0:00:13]} Rf1 {[%emt 0:00:42]} 68. Rg7+ {[%emt 0:01:41]} Kh8 {[%emt 0:00:35]} 69. Rg5 {[%emt 0:01:53]} Ra1 {[%emt 0:00:26]} 70. Rg6 {[%emt 0:00:43]} Rf1 {[%emt 0:00:27]} 71. Re6 {[%emt 0:00:41]} Rg1 {[%emt 0:00:30]} 72. Rg6 {[%emt 0:00:54]} Ra1 {[%emt 0:00:09]} 73. Rg4 {[%emt 0:02:15]} Rg1 {[%emt 0:01:09]} 74. Rd4 {[%emt 0:01:39]} Rg4 {[%emt 0:00:14]} 75. Rd8+ {[%emt 0:00:18]} Rg8 {[%emt 0:00:10]} 76. Rd7 {[%emt 0:00:05]} Rg7 {[%emt 0:00:11]} 77. Rd8+ {[%emt 0:00:40]} Rg8 {[%emt 0:00:06]} 78. Rxg8+ {[%emt 0:00:03]} Kxg8 {[%emt 0:00:11]} 79. Kg6 {[%emt 0:00:04]} Kh8 {[%emt 0:00:10]} 80. h6 {[%emt 0:00:06]} Kg8 {[%emt 0:00:05]} 81. h7+ {[%emt 0:00:09]} Kh8 {[%emt 0:00:07]} 82. Kh6 {[%emt 0:00:22]} 1/2-1/2

[Event "ONJK-C 2019"]
[Site "Borne"]
[Date "2019.08.09"]
[Round "7.3"]
[White "Boeren, Jurriaan"]
[Black "Nielsen, Philip"]
[Result "0-1"]
[ECO "B07"]
[WhiteElo "1522"]
[BlackElo "1797"]
[Annotator "NA RC"]
[PlyCount "82"]
[EventDate "2019.08.05"]
[EventType "swiss"]
[EventCountry "NED"]
[SourceTitle "playchess.com"]
[Source "ChessBase"]
[SourceQuality "1"]
[TimeControl "5400+30"]

1. e4 {[%emt 0:00:00]} d6 {[%emt 0:00:00]} 2. Nf3 {[%emt 0:00:00]} Nf6 {[%emt 0:00:57]} 3. d3 {[%emt 0:00:41]} g6 {[%emt 0:00:09]} 4. c3 {[%emt 0:00:49]} Bg7 {[%emt 0:00:24]} 5. Be3 {[%emt 0:00:33]} O-O {[%emt 0:00:09]} 6. Nbd2 {[%emt 0:00:37]} Nbd7 {[%emt 0:01:29]} 7. Be2 {[%emt 0:01:12]} b6 {[%emt 0:00:15]} 8. Nf1 {[%emt 0:03:02]} Bb7 {[%emt 0:00:58]} 9. Qd2 {[%emt 0:00:49]} e5 {[%emt 0:00:06]} 10. Bh6 {[%emt 0:05:27]} d5 {[%emt 0:02:32]} 11. exd5 {[%emt 0:02:04]} Bxd5 {[%emt 0:00:07]} 12. Bxg7 {[%emt 0:01:26]} Kxg7 {[%emt 0:00:09]} 13. h4 {[%emt 0:01:52]} e4 {[%emt 0:02:32]} 14. dxe4 {[%emt 0:02:02]} Bxe4 {[%emt 0:00:10]} 15. h5 {[%emt 0:04:25]} Nc5 {[%emt 0:03:51]} 16. h6+ {[%emt 0:16:31]} Kg8 {[%emt 0:00:25]} 17. Qxd8 {[%emt 0:00:56]} Raxd8 {[%emt 0:00:06]} 18. Ng3 {[%emt 0:00:50]} Bxf3 {[%emt 0:00:45]} 19. gxf3 {[%emt 0:04:12]} Rfe8 {[%emt 0:00:16]} 20. O-O {[%emt 0:00:31]} Rd2 {[%emt 0:01:07]} 21. Rab1 {[%emt 0:01:14]} Rexe2 {[%emt 0:01:35]} 22. Nxe2 {[%emt 0:00:08]} Rxe2 {[%emt 0:00:04]} 23. Rbd1 {[%emt 0:00:54]} Ne6 {[%emt 0:01:15]} 24. Rb1 {[%emt 0:00:58]} Re5 {[%emt 0:01:03]} 25. Rfe1 {[%emt 0:03:36]} Rh5 {[%emt 0:00:22]} 26. Rbd1 {[%emt 0:02:49]} Rxh6 {[%emt 0:00:51]} 27. Kg2 {[%emt 0:00:00]} Rh5 {[%emt 0:00:07]} 28. Re3 {[%emt 0:01:42]} Nd5 {[%emt 0:01:49]} 29. Re4 {[%emt 0:00:36]} Ndf4+ {[%emt 0:01:25]} 30. Kg1 {[%emt 0:00:27]} Nh3+ {[%emt 0:00:29]} 31. Kf1 {[%emt 0:00:12]} Rg5 {[%emt 0:02:12]} 32. Ke2 {[%emt 0:00:17]} Rf5 {[%emt 0:02:42]} 33. Re3 {[%emt 0:00:59]} Nef4+ {[%emt 0:00:24]} 34. Kf1 {[%emt 0:01:18]} Rg5 {[%emt 0:00:12]} 35. Ke1 {[%emt 0:01:10]} Ng2+ {[%emt 0:00:08]} 36. Ke2 {[%emt 0:00:21]} Nxe3 {[%emt 0:00:08]} 37. fxe3 {[%emt 0:00:02]} Rg2+ {[%emt 0:00:18]} 38. Ke1 {[%emt 0:00:27]} Rxb2 {[%emt 0:00:07]} 39. Ra1 {[%emt 0:00:43]} Rh2 {[%emt 0:00:11]} 40. Rd1 {[%emt 0:00:05]} Rxa2 {[%emt 0:00:07]} 41. Rc1 {[%emt 0:00:14]} Ng5 {[%emt 0:00:14]} 0-1

[Event "ONJK-C 2019"]
[Site "Borne"]
[Date "2019.08.09"]
[Round "7.4"]
[White "Dhaenens, Leon"]
[Black "Goudriaan, Rafael"]
[Result "1-0"]
[ECO "A39"]
[WhiteElo "1583"]
[BlackElo "1719"]
[Annotator "NA RC"]
[PlyCount "91"]
[EventDate "2019.08.05"]
[EventType "swiss"]
[EventCountry "NED"]
[SourceTitle "playchess.com"]
[Source "ChessBase"]
[SourceQuality "1"]
[TimeControl "5400+30"]

1. c4 {[%emt 0:00:00]} c5 {[%emt 0:00:00]} 2. g3 {[%emt 0:00:00]} g6 {[%emt 0:00:00]} 3. Bg2 {[%emt 0:00:00]} Bg7 {[%emt 0:00:00]} 4. Nc3 {[%emt 0:00:37]} Nc6 {[%emt 0:00:00]} 5. Nf3 {[%emt 0:01:08]} Nf6 {[%emt 0:00:06]} 6. d4 {[%emt 0:01:14]} cxd4 {[%emt 0:01:59]} 7. Nxd4 {[%emt 0:00:09]} Nxd4 {[%emt 0:03:16]} 8. Qxd4 {[%emt 0:00:06]} O-O {[%emt 0:00:21]} 9. O-O {[%emt 0:09:00]} d6 {[%emt 0:01:59]} 10. Qd2 {[%emt 0:05:24]} Qc7 {[%emt 0:06:47]} 11. b3 {[%emt 0:08:11]} Bd7 {[%emt 0:03:53]} 12. Bb2 {[%emt 0:05:24]} Rfe8 {[%emt 0:06:41]} 13. Rfd1 {[%emt 0:06:12]} Qc8 {[%emt 0:02:34]} 14. Rac1 {[%emt 0:05:53]} Ng4 {[%emt 0:08:51]} 15. Ne4 {[%emt 0:24:55]} Bxb2 {[%emt 0:01:20]} 16. Qxb2 {[%emt 0:00:45]} Bc6 {[%emt 0:00:59]} 17. c5 {[%emt 0:05:39]} Qf5 {[%emt 0:14:31]} 18. h3 {[%emt 0:04:46]} Ne5 {[%emt 0:02:33]} 19. Qd4 {[%emt 0:05:22]} d5 {[%emt 0:08:59]} 20. Nc3 {[%emt 0:02:52]} e6 {[%emt 0:01:18]} 21. f4 {[%emt 0:01:51]} Nd7 {[%emt 0:01:42]} 22. b4 {[%emt 0:01:11]} e5 {[%emt 0:03:56]} 23. fxe5 {[%emt 0:00:46]} Nxe5 {[%emt 0:00:28]} 24. b5 {[%emt 0:01:47]} Bd7 {[%emt 0:00:02]} 25. Rf1 {[%emt 0:00:33]} Qg5 {[%emt 0:01:00]} 26. Nxd5 {[%emt 0:00:38]} Rad8 {[%emt 0:02:35]} 27. Nf6+ {[%emt 0:00:32]} Kg7 {[%emt 0:02:38]} 28. Nxe8+ {[%emt 0:00:15]} Bxe8 {[%emt 0:01:41]} 29. Qf4 {[%emt 0:00:26]} Qe7 {[%emt 0:00:28]} 30. c6 {[%emt 0:00:19]} bxc6 {[%emt 0:00:37]} 31. bxc6 {[%emt 0:00:09]} Rc8 {[%emt 0:00:28]} 32. Rc2 {[%emt 0:02:27]} Nxc6 {[%emt 0:01:17]} 33. Rfc1 {[%emt 0:00:59]} Qe6 {[%emt 0:01:19]} 34. Qc4 {[%emt 0:01:27]} Qe3+ {[%emt 0:00:31]} 35. Kh2 {[%emt 0:01:32]} Ne7 {[%emt 0:00:34]} 36. Qd3 {[%emt 0:00:17]} Qe6 {[%emt 0:03:35]} 37. Rxc8 {[%emt 0:00:10]} Nxc8 {[%emt 0:00:10]} 38. Qc3+ {[%emt 0:00:08]} Kh6 {[%emt 0:01:00]} 39. Qxc8 {[%emt 0:00:37]} Qxe2 {[%emt 0:00:16]} 40. Qg4 {[%emt 0:00:43]} Qxa2 {[%emt 0:00:23]} 41. Qf4+ {[%emt 0:01:06]} Kg7 {[%emt 0:00:13]} 42. Qe5+ {[%emt 0:00:19]} Kf8 {[%emt 0:00:09]} 43. Rc8 {[%emt 0:00:24]} Qa4 {[%emt 0:00:19]} 44. Qd6+ {[%emt 0:00:40]} Kg7 {[%emt 0:00:12]} 45. Qe7 {[%emt 0:00:27]} Bb5 {[%emt 0:00:39]} 46. Qe5+ {[%emt 0:00:44]} 1-0

[Event "ONJK-C 2019"]
[Site "Borne"]
[Date "2019.08.09"]
[Round "7.5"]
[White "Neisingh, Nils"]
[Black "Ang, Rufus"]
[Result "1-0"]
[ECO "C42"]
[WhiteElo "1710"]
[BlackElo "1498"]
[Annotator "NA RC"]
[PlyCount "77"]
[EventDate "2019.08.05"]
[EventType "swiss"]
[EventCountry "NED"]
[SourceTitle "playchess.com"]
[Source "ChessBase"]
[SourceQuality "1"]
[TimeControl "5400+30"]

1. e4 {[%emt 0:00:00]} e5 {[%emt 0:00:00]} 2. Nf3 {[%emt 0:00:03]} Nf6 {[%emt 0:00:00]} 3. Nxe5 {[%emt 0:00:19]} d6 {[%emt 0:00:09]} 4. Nf3 {[%emt 0:00:07]} Nxe4 {[%emt 0:00:09]} 5. Nc3 {[%emt 0:00:23]} Nf6 {[%emt 0:00:34]} 6. d4 {[%emt 0:01:38]} d5 {[%emt 0:00:30]} 7. h3 {[%emt 0:01:12]} c5 {[%emt 0:00:19]} 8. Bb5+ {[%emt 0:19:36]} Bd7 {[%emt 0:10:49]} 9. Bxd7+ {[%emt 0:04:52]} Qxd7 {[%emt 0:00:33]} 10. Bg5 {[%emt 0:12:57]} Qe6+ {[%emt 0:01:53]} 11. Be3 {[%emt 0:09:27]} Nbd7 {[%emt 0:04:29]} 12. O-O {[%emt 0:03:20]} Bd6 {[%emt 0:01:21]} 13. Re1 {[%emt 0:06:25]} Ne4 {[%emt 0:08:40]} 14. dxc5 {[%emt 0:07:08]} Bxc5 {[%emt 0:01:52]} 15. Bxc5 {[%emt 0:05:36]} Ndxc5 {[%emt 0:01:30]} 16. Nd4 {[%emt 0:04:47]} Qe5 {[%emt 0:03:36]} 17. f3 {[%emt 0:04:34]} O-O {[%emt 0:01:37]} 18. fxe4 {[%emt 0:00:32]} dxe4 {[%emt 0:01:24]} 19. Nb3 {[%emt 0:02:18]} Rad8 {[%emt 0:07:15]} 20. Qe2 {[%emt 0:01:12]} Nxb3 {[%emt 0:00:13]} 21. axb3 {[%emt 0:00:15]} f5 {[%emt 0:00:13]} 22. Rxa7 {[%emt 0:02:14]} Rb8 {[%emt 0:00:13]} 23. Qc4+ {[%emt 0:01:30]} Kh8 {[%emt 0:00:16]} 24. Kh1 {[%emt 0:00:43]} Qg3 {[%emt 0:01:21]} 25. Qe2 {[%emt 0:00:55]} Rbe8 {[%emt 0:01:01]} 26. Rxb7 {[%emt 0:01:28]} e3 {[%emt 0:00:16]} 27. Rf1 {[%emt 0:01:30]} f4 {[%emt 0:00:18]} 28. Qg4 {[%emt 0:03:06]} e2 {[%emt 0:02:08]} 29. Nxe2 {[%emt 0:01:00]} Qxg4 {[%emt 0:01:03]} 30. hxg4 {[%emt 0:00:05]} Rxe2 {[%emt 0:00:07]} 31. Rxf4 {[%emt 0:00:08]} Rfe8 {[%emt 0:00:30]} 32. Rc7 {[%emt 0:00:44]} h6 {[%emt 0:00:41]} 33. Rfc4 {[%emt 0:02:53]} R8e3 {[%emt 0:00:29]} 34. Rc3 {[%emt 0:00:26]} Re4 {[%emt 0:00:07]} 35. Rg3 {[%emt 0:00:26]} Re1+ {[%emt 0:00:23]} 36. Kh2 {[%emt 0:00:02]} Rf1 {[%emt 0:00:26]} 37. g5 {[%emt 0:00:35]} Ree1 {[%emt 0:00:32]} 38. Rc8+ {[%emt 0:00:21]} Kh7 {[%emt 0:00:08]} 39. g6# {[%emt 0:00:06]} 1-0

[Event "ONJK-C 2019"]
[Site "Borne"]
[Date "2019.08.09"]
[Round "7.6"]
[White "Smeets, Kobe"]
[Black "Malfliet, Alexander"]
[Result "1-0"]
[ECO "B47"]
[WhiteElo "1530"]
[BlackElo "1491"]
[Annotator "NA RC"]
[PlyCount "32"]
[EventDate "2019.08.05"]
[EventType "swiss"]
[EventCountry "NED"]
[SourceTitle "playchess.com"]
[Source "ChessBase"]
[SourceQuality "1"]
[TimeControl "5400+30"]

1. e4 {[%emt 0:00:21]} c5 {[%emt 0:00:00]} 2. Nf3 {[%emt 0:00:06]} Nc6 {[%emt 0:00:00]} 3. d4 {[%emt 0:00:09]} cxd4 {[%emt 0:00:00]} 4. Nxd4 {[%emt 0:00:06]} e6 {[%emt 0:00:06]} 5. Nc3 {[%emt 0:00:06]} a6 {[%emt 0:00:05]} 6. g3 {[%emt 0:00:07]} Qc7 {[%emt 0:00:09]} 7. Bg2 {[%emt 0:00:16]} Nf6 {[%emt 0:00:40]} 8. O-O {[%emt 0:00:13]} Be7 {[%emt 0:00:38]} 9. Be3 {[%emt 0:00:16]} O-O {[%emt 0:01:51]} 10. f4 {[%emt 0:00:18]} b5 {[%emt 0:03:46]} 11. a3 {[%emt 0:03:57]} Bc5 {[%emt 0:01:44]} 12. Kh1 {[%emt 0:04:48]} Qb6 {[%emt 0:03:49]} 13. Nxc6 {[%emt 0:02:13]} dxc6 {[%emt 0:00:55]} 14. Bxc5 {[%emt 0:00:46]} Qxc5 {[%emt 0:00:13]} 15. e5 {[%emt 0:04:53]} Nd5 {[%emt 0:00:15]} 16. Nxd5 {[%emt 0:02:18]} cxd5 {[%emt 0:00:23]} 1-0

[Event "ONJK-C 2019"]
[Site "Borne"]
[Date "2019.08.09"]
[Round "7.7"]
[White "Den Heijer, Rolinde"]
[Black "Arnold, Lorin"]
[Result "1-0"]
[ECO "B32"]
[WhiteElo "1471"]
[BlackElo "1583"]
[Annotator "NA RC"]
[PlyCount "65"]
[EventDate "2019.08.05"]
[EventType "swiss"]
[EventCountry "NED"]
[SourceTitle "playchess.com"]
[Source "ChessBase"]
[SourceQuality "1"]
[TimeControl "5400+30"]

1. e4 {[%emt 0:00:00]} c5 {[%emt 0:00:30]} 2. Nf3 {[%emt 0:00:00]} Nc6 {[%emt 0:00:13]} 3. d4 {[%emt 0:00:00]} cxd4 {[%emt 0:00:05]} 4. Nxd4 {[%emt 0:00:01]} e5 {[%emt 0:00:09]} 5. Nb5 {[%emt 0:00:50]} d6 {[%emt 0:00:12]} 6. Bc4 {[%emt 0:01:28]} Nf6 {[%emt 0:00:38]} 7. Bd5 {[%emt 0:01:29]} Bd7 {[%emt 0:01:59]} 8. N1c3 {[%emt 0:04:10]} a6 {[%emt 0:00:13]} 9. Na3 {[%emt 0:00:20]} b5 {[%emt 0:00:22]} 10. Ne2 {[%emt 0:02:09]} Rc8 {[%emt 0:00:31]} 11. c3 {[%emt 0:00:52]} Be7 {[%emt 0:00:40]} 12. Be3 {[%emt 0:02:08]} O-O {[%emt 0:00:47]} 13. O-O {[%emt 0:00:57]} Be6 {[%emt 0:00:54]} 14. c4 {[%emt 0:08:30]} bxc4 {[%emt 0:02:56]} 15. Nxc4 {[%emt 0:01:12]} Nxe4 {[%emt 0:01:12]} 16. Nxe5 {[%emt 0:06:13]} Nxe5 {[%emt 0:05:24]} 17. Bxe4 {[%emt 0:01:04]} f5 {[%emt 0:00:38]} 18. Bb7 {[%emt 0:05:12]} Rb8 {[%emt 0:00:08]} 19. Bxa6 {[%emt 0:00:12]} Rxb2 {[%emt 0:00:10]} 20. a4 {[%emt 0:00:51]} Bg5 {[%emt 0:00:46]} 21. Qc1 {[%emt 0:06:06]} f4 {[%emt 0:04:10]} 22. Bxf4 {[%emt 0:04:58]} Bxf4 {[%emt 0:00:06]} 23. Nxf4 {[%emt 0:03:51]} Rxf4 {[%emt 0:01:38]} 24. Qxf4 {[%emt 0:01:09]} Qa5 {[%emt 0:00:30]} 25. Bb5 {[%emt 0:00:53]} Rb4 {[%emt 0:00:30]} 26. Qe3 {[%emt 0:01:33]} Bd5 {[%emt 0:00:59]} 27. Rac1 {[%emt 0:02:06]} Qa8 {[%emt 0:00:18]} 28. f3 {[%emt 0:02:05]} Rb3 {[%emt 0:01:42]} 29. Rc3 {[%emt 0:00:39]} Rb2 {[%emt 0:00:31]} 30. Rfc1 {[%emt 0:02:27]} Be6 {[%emt 0:02:09]} 31. Bc6 {[%emt 0:05:10]} Nxc6 {[%emt 0:04:29]} 32. Qxe6+ {[%emt 0:01:30]} Kf8 {[%emt 0:00:12]} 33. Qxd6+ {[%emt 0:00:16]} 1-0

[Event "ONJK-C 2019"]
[Site "Borne"]
[Date "2019.08.09"]
[Round "7.8"]
[White "Groen, Jari"]
[Black "Knol, Daniel"]
[Result "1-0"]
[ECO "B90"]
[WhiteElo "1349"]
[BlackElo "1622"]
[Annotator "NA RC"]
[PlyCount "90"]
[EventDate "2019.08.05"]
[EventType "swiss"]
[EventCountry "NED"]
[SourceTitle "playchess.com"]
[Source "ChessBase"]
[SourceQuality "1"]
[TimeControl "5400+30"]

1. e4 {[%emt 0:00:00]} c5 {[%emt 0:00:44]} 2. Nf3 {[%emt 0:00:00]} d6 {[%emt 0:00:04]} 3. d4 {[%emt 0:00:00]} cxd4 {[%emt 0:00:05]} 4. Nxd4 {[%emt 0:00:00]} Nf6 {[%emt 0:00:01]} 5. Nc3 {[%emt 0:00:07]} a6 {[%emt 0:00:03]} 6. Be3 {[%emt 0:01:42]} e5 {[%emt 0:00:05]} 7. Nb3 {[%emt 0:00:11]} Nc6 {[%emt 0:00:18]} 8. f3 {[%emt 0:00:55]} b5 {[%emt 0:00:18]} 9. a3 {[%emt 0:03:42]} Bb7 {[%emt 0:01:15]} 10. Be2 {[%emt 0:02:13]} Be7 {[%emt 0:00:10]} 11. O-O {[%emt 0:00:35]} O-O {[%emt 0:01:09]} 12. Qd2 {[%emt 0:04:29]} Qc7 {[%emt 0:01:35]} 13. Rfd1 {[%emt 0:02:46]} Rad8 {[%emt 0:00:39]} 14. Nd5 {[%emt 0:02:28]} Nxd5 {[%emt 0:00:06]} 15. exd5 {[%emt 0:00:15]} Nb8 {[%emt 0:00:05]} 16. Rac1 {[%emt 0:02:44]} f5 {[%emt 0:00:10]} 17. c4 {[%emt 0:05:30]} bxc4 {[%emt 0:01:08]} 18. Rxc4 {[%emt 0:03:44]} Qd7 {[%emt 0:00:06]} 19. Na5 {[%emt 0:03:46]} Ba8 {[%emt 0:05:05]} 20. Rdc1 {[%emt 0:03:00]} Rc8 {[%emt 0:00:07]} 21. Qc2 {[%emt 0:01:37]} Rxc4 {[%emt 0:02:41]} 22. Qxc4 {[%emt 0:03:05]} f4 {[%emt 0:08:48]} 23. Bb6 {[%emt 0:04:44]} Bd8 {[%emt 0:00:31]} 24. Bxd8 {[%emt 0:03:42]} Qxd8 {[%emt 0:00:32]} 25. b4 {[%emt 0:04:14]} Qb6+ {[%emt 0:08:31]} 26. Kf1 {[%emt 0:01:43]} Qe3 {[%emt 0:20:40]} 27. Rc3 {[%emt 0:11:27]} Qd2 {[%emt 0:00:06]} 28. Rd3 {[%emt 0:02:32]} Qb2 {[%emt 0:00:07]} 29. Nc6 {[%emt 0:02:23]} Nd7 {[%emt 0:10:00]} 30. Qxa6 {[%emt 0:04:03]} Nf6 {[%emt 0:00:17]} 31. Ne7+ {[%emt 0:03:29]} Kh8 {[%emt 0:00:35]} 32. Qxd6 {[%emt 0:01:06]} e4 {[%emt 0:00:04]} 33. Ng6+ {[%emt 0:01:34]} hxg6 {[%emt 0:00:11]} 34. Qxf8+ {[%emt 0:00:18]} Kh7 {[%emt 0:00:02]} 35. fxe4 {[%emt 0:01:25]} Qc1+ {[%emt 0:00:11]} 36. Rd1 {[%emt 0:05:35]} Qe3 {[%emt 0:00:12]} 37. Qc5 {[%emt 0:01:28]} Qxe4 {[%emt 0:00:21]} 38. Bf3 {[%emt 0:01:28]} Qf5 {[%emt 0:01:35]} 39. d6 {[%emt 0:04:05]} Bxf3 {[%emt 0:00:34]} 40. Qxf5 {[%emt 0:00:25]} gxf5 {[%emt 0:00:13]} 41. gxf3 {[%emt 0:00:09]} Nd7 {[%emt 0:00:05]} 42. b5 {[%emt 0:00:28]} Kg6 {[%emt 0:00:05]} 43. b6 {[%emt 0:00:42]} Kf6 {[%emt 0:02:22]} 44. b7 {[%emt 0:01:26]} Ke6 {[%emt 0:00:00]} 45. Re1+ {[%emt 0:01:13]} Kd5 {[%emt 0:00:00]} 1-0

[Event "ONJK-C 2019"]
[Site "Borne"]
[Date "2019.08.09"]
[Round "7.9"]
[White "De Jong, Mats"]
[Black "De Heij, Mees"]
[Result "1-0"]
[ECO "D02"]
[WhiteElo "1356"]
[BlackElo "1545"]
[Annotator "NA RC"]
[PlyCount "55"]
[EventDate "2019.08.05"]
[EventType "swiss"]
[EventCountry "NED"]
[SourceTitle "playchess.com"]
[Source "ChessBase"]
[SourceQuality "1"]
[TimeControl "5400+30"]

1. d4 {[%emt 0:00:00]} d5 {[%emt 0:00:00]} 2. c4 {[%emt 0:00:00]} c6 {[%emt 0:00:00]} 3. Nf3 {[%emt 0:00:00]} Nf6 {[%emt 0:00:04]} 4. Nc3 {[%emt 0:00:37]} Bf5 {[%emt 0:00:19]} 5. Bf4 {[%emt 0:00:28]} e6 {[%emt 0:00:15]} 6. e3 {[%emt 0:00:19]} Bb4 {[%emt 0:00:43]} 7. a3 {[%emt 0:00:39]} Bd6 {[%emt 0:01:13]} 8. Bxd6 {[%emt 0:01:18]} Qxd6 {[%emt 0:00:06]} 9. cxd5 {[%emt 0:02:53]} exd5 {[%emt 0:01:36]} 10. Bd3 {[%emt 0:00:30]} Bxd3 {[%emt 0:01:35]} 11. Qxd3 {[%emt 0:00:36]} O-O {[%emt 0:00:49]} 12. O-O {[%emt 0:00:00]} Nbd7 {[%emt 0:00:21]} 13. b4 {[%emt 0:01:01]} a6 {[%emt 0:02:58]} 14. Rfc1 {[%emt 0:02:38]} Rfe8 {[%emt 0:02:29]} 15. Nd2 {[%emt 0:05:07]} h6 {[%emt 0:07:31]} 16. Na4 {[%emt 0:00:41]} Rab8 {[%emt 0:02:11]} 17. Rab1 {[%emt 0:00:58]} Ne4 {[%emt 0:01:54]} 18. Nxe4 {[%emt 0:00:58]} Rxe4 {[%emt 0:00:55]} 19. Nc5 {[%emt 0:01:01]} Rg4 {[%emt 0:02:54]} 20. Qf5 {[%emt 0:01:50]} Nf6 {[%emt 0:00:53]} 21. Nxb7 {[%emt 0:03:23]} Rg5 {[%emt 0:01:05]} 22. Nxd6 {[%emt 0:02:15]} Rxf5 {[%emt 0:00:22]} 23. Nxf5 {[%emt 0:00:14]} Kf8 {[%emt 0:01:01]} 24. Rxc6 {[%emt 0:00:54]} Ne8 {[%emt 0:01:01]} 25. Rbc1 {[%emt 0:01:05]} a5 {[%emt 0:00:27]} 26. Rc8 {[%emt 0:01:15]} Rb6 {[%emt 0:00:16]} 27. R1c6 {[%emt 0:00:51]} Rb7 {[%emt 0:00:23]} 28. Nd6 {[%emt 0:01:13]} 1-0